fUSD/lending_fUSD_20260531
["ID","MTS","AMOUNT","RATE_DAILY","PERIOD"]
[423523780,1780189845000,-1178.676767,0.00015,2]
[423523738,1780189845000,-500.0,0.00014999,2]
[423523736,1780189845000,-1037.93,0.00014999,2]
[423523754,1780189845000,-300.0,0.00014999,2]
[423523737,1780189845000,-1037.93,0.00014999,2]
[423523740,1780189845000,-500.0,0.00014999,2]
[423523741,1780189845000,-490.0,0.00014999,2]
[423523742,1780189845000,-500.0,0.00014999,2]
[423523745,1780189845000,-1201.83,0.00014999,2]
[423523746,1780189845000,-1201.83,0.00014999,2]
[423523744,1780189845000,-500.0,0.00014999,2]
[423523743,1780189845000,-500.0,0.00014999,2]
[423523749,1780189845000,-500.0,0.00014999,2]
[423523751,1780189845000,-521.03,0.00014999,2]
[423523750,1780189845000,-304.15973657,0.00014999,2]
[423523748,1780189845000,-500.0,0.00014999,2]
[423523723,1780189845000,-809.51,0.00014999,2]
[423523752,1780189845000,-521.03,0.00014999,2]
[423523739,1780189845000,-500.0,0.00014999,2]
[423523785,1780189845000,-162.476006,0.00015,2]
[423523735,1780189845000,-1037.93,0.00014999,2]
[423523786,1780189845000,-162.476006,0.00015,2]
[423523819,1780189845000,-778.60591016,0.00016,2]
[423523820,1780189845000,-300.0,0.00016,2]
[423523828,1780189845000,-521.03,0.00016438,2]
[423523823,1780189845000,-1296.7,0.00016438,2]
[423523825,1780189845000,-500.0,0.00016438,2]
[423523824,1780189845000,-877.27641831,0.00016438,2]
[423523827,1780189845000,-1201.83,0.00016438,2]
[423523826,1780189845000,-500.0,0.00016438,2]
[423523829,1780189845000,-151.0,0.00016438,2]
[423523830,1780189845000,-796.46927,0.00016438,2]
[423523831,1780189845000,-796.46927,0.00016438,2]
[423523833,1780189845000,-796.46927,0.00016438,2]
[423523832,1780189845000,-796.46927,0.00016438,2]
[423523835,1780189845000,-796.46927,0.00016438,2]
[423523834,1780189845000,-796.46927,0.00016438,2]
[423523836,1780189845000,-796.46927,0.00016438,2]
[423523840,1780189845000,-3733.095094,0.00016438,2]
[423523838,1780189845000,-3733.095094,0.00016438,2]
[423523841,1780189845000,-3733.095094,0.00016438,2]
[423523837,1780189845000,-796.46927,0.00016438,2]
[423523839,1780189845000,-3733.095094,0.00016438,2]
[423523842,1780189845000,-3733.095094,0.00016438,2]
[423523843,1780189845000,-3733.095094,0.00016438,2]
[423523844,1780189845000,-3733.095094,0.00016438,2]
[423523849,1780189845000,-377.783006,0.00016438,2]
[423523847,1780189845000,-377.783006,0.00016438,2]
[423523845,1780189845000,-3733.095094,0.00016438,2]
[423523851,1780189845000,-377.783006,0.00016438,2]
[423523789,1780189845000,-151.0,0.00015,2]
[423523818,1780189845000,-19231.44409151,0.00015818,2]
[423523822,1780189845000,-2000.0,0.00016213,2]
[423523747,1780189845000,-1201.83,0.00014999,2]
[423523817,1780189845000,-200.0,0.00015609,2]
[423523787,1780189845000,-162.476006,0.00015,2]
[423523791,1780189845000,-763.30317,0.00015068,2]
[423523788,1780189845000,-162.476006,0.00015,2]
[423523790,1780189845000,-763.30317,0.00015068,2]
[423523793,1780189845000,-763.30317,0.00015068,2]
[423523792,1780189845000,-763.30317,0.00015068,2]
[423523794,1780189845000,-763.30317,0.00015068,2]
[423523796,1780189845000,-763.30317,0.00015068,2]
[423523795,1780189845000,-763.30317,0.00015068,2]
[423523797,1780189845000,-763.30317,0.00015068,2]
[423523800,1780189845000,-763.30317,0.00015068,2]
[423523798,1780189845000,-763.30317,0.00015068,2]
[423523801,1780189845000,-763.30317,0.00015068,2]
[423523799,1780189845000,-763.30317,0.00015068,2]
[423523821,1780189845000,-1017.94,0.00016121,2]
[423523803,1780189845000,-200.0,0.0001515,2]
[423523816,1780189845000,-200.0,0.00015609,2]
[423523814,1780189845000,-200.0,0.00015455,2]
[423523811,1780189845000,-3202.91349182,0.00015382,2]
[423523815,1780189845000,-25015.33139485,0.00015585,2]
[423523802,1780189845000,-200.0,0.0001515,2]
[423523810,1780189845000,-200.0,0.00015301,2]
[423523812,1780189845000,-200.0,0.00015455,2]
[423523808,1780189845000,-200.0,0.00015301,2]
[423523806,1780189845000,-1423.89,0.00015208,2]
[423523809,1780189845000,-200.0,0.00015301,2]
[423523807,1780189845000,-151.0,0.00015297,2]
[423523805,1780189845000,-500.0,0.00015151,2]
[423523804,1780189845000,-200.0,0.0001515,2]
[423523813,1780189845000,-200.0,0.00015455,2]
[423523902,1780189846000,-2728.040606,0.00018986,2]
[423523901,1780189846000,-1037.93,0.0001872,2]
[423523899,1780189846000,-1027.82,0.00018499,2]
[423523900,1780189846000,-809.51,0.00018499,2]
[423523898,1780189846000,-803.28,0.00018499,2]
[423523890,1780189846000,-1545.0,0.00018033,2]
[423523897,1780189846000,-1296.7,0.0001841,2]
[423523895,1780189846000,-1802.86223533,0.000181,2]
[423523893,1780189846000,-151.0,0.00018033,2]
[423523891,1780189846000,-1545.0,0.00018033,2]
[423523892,1780189846000,-151.0,0.00018033,2]
[423523903,1780189846000,-2728.040606,0.00018986,2]
[423523896,1780189846000,-236.04068925,0.000182,2]
[423523904,1780189846000,-2728.040606,0.00018986,2]
[423523908,1780189846000,-2728.040606,0.00018986,2]
[423523907,1780189846000,-2728.040606,0.00018986,2]
[423523912,1780189846000,-2728.040606,0.00018986,2]
[423523911,1780189846000,-2728.040606,0.00018986,2]
[423523909,1780189846000,-2728.040606,0.00018986,2]
[423523910,1780189846000,-2728.040606,0.00018986,2]
[423523913,1780189846000,-2728.040606,0.00018986,2]
[423523918,1780189846000,-1064.41053165,0.00019,2]
[423523917,1780189846000,-743.36612647,0.00019,2]
[423523919,1780189846000,-250.0,0.00019178,2]
[423523914,1780189846000,-5537.9324831,0.00018993,2]
[423523916,1780189846000,-5238.99494008,0.00019,2]
[423523915,1780189846000,-12589.8507357,0.00018993,2]
[423523894,1780189846000,-304.0,0.00018033,2]
[423523906,1780189846000,-2728.040606,0.00018986,2]
[423523889,1780189846000,-1545.0,0.00018033,2]
[423523876,1780189846000,-164.27,0.00017136,2]
[423523887,1780189846000,-411.4,0.00018,2]
[423523853,1780189846000,-377.783006,0.00016438,2]
[423523855,1780189846000,-377.783006,0.00016438,2]
[423523866,1780189846000,-377.783006,0.00016438,2]
[423523867,1780189846000,-377.783006,0.00016438,2]
[423523865,1780189846000,-377.783006,0.00016438,2]
[423523857,1780189846000,-377.783006,0.00016438,2]
[423523859,1780189846000,-377.783006,0.00016438,2]
[423523861,1780189846000,-377.783006,0.00016438,2]
[423523863,1780189846000,-377.783006,0.00016438,2]
[423523869,1780189846000,-679.73,0.00016474,2]
[423523872,1780189846000,-13069.77314437,0.000165,2]
[423523870,1780189846000,-9516.64,0.00016474,2]
[423523871,1780189846000,-6618.30733777,0.000165,2]
[423523888,1780189846000,-1545.0,0.00018033,2]
[423523868,1780189846000,-1363.72,0.00016474,2]
[423523920,1780189846000,-250.0,0.00019178,2]
[423523874,1780189846000,-1423.89,0.00016591,2]
[423523878,1780189846000,-500.0,0.00017507,2]
[423523877,1780189846000,-25015.33139485,0.00017421,2]
[423523879,1780189846000,-424.76472339,0.00017565,2]
[423523880,1780189846000,-793.43309813,0.000177,2]
[423523881,1780189846000,-19231.44409151,0.00017731,2]
[423523875,1780189846000,-629.97,0.00016767,2]
[423523886,1780189846000,-350.0,0.00018,2]
[423523882,1780189846000,-1239.9526844,0.0001789,2]
[423523883,1780189846000,-1747.0,0.0001796,5]
[423523884,1780189846000,-1208.12473226,0.00018,2]
[423523885,1780189846000,-236.04068925,0.00018,2]
[423523873,1780189846000,-1000.0,0.000165,2]
[423523922,1780189846000,-264.39777289,0.00019178,2]
[423523905,1780189846000,-2728.040606,0.00018986,2]
[423523924,1780189846000,-151.0,0.00019178,2]
[423523979,1780189846000,-151.0,0.00019538,2]
[423523980,1780189846000,-151.0,0.00019538,2]
[423523987,1780189846000,-151.0,0.00019538,2]
[423523984,1780189846000,-151.0,0.00019538,2]
[423523986,1780189846000,-151.0,0.00019538,2]
[423523982,1780189846000,-151.0,0.00019538,2]
[423523988,1780189846000,-151.0,0.00019538,2]
[423523989,1780189846000,-19231.44409151,0.00019644,2]
[423523990,1780189846000,-411.4,0.000197,2]
[423523992,1780189846000,-679.73,0.00019968,2]
[423523991,1780189846000,-1363.72,0.00019968,2]
[423523993,1780189846000,-9516.64,0.00019968,2]
[423523997,1780189846000,-500.0,0.00019999,2]
[423523996,1780189846000,-1178.1635397,0.00019982,2]
[423523995,1780189846000,-2298.8636964,0.00019982,2]
[423523998,1780189846000,-500.0,0.00019999,2]
[423523999,1780189846000,-1201.83,0.00019999,2]
[423524000,1780189846000,-521.03,0.00019999,2]
[423524001,1780189846000,-400.0,0.0002,2]
[423524002,1780189846000,-454.0,0.0002,2]
[423524003,1780189846000,-207.0,0.0002,2]
[423524006,1780189846000,-196.0,0.0002,2]
[423524005,1780189846000,-622.0,0.0002,2]
[423524009,1780189846000,-341.0,0.0002,2]
[423524007,1780189846000,-168.0,0.0002,2]
[423524004,1780189846000,-155.0,0.0002,2]
[423524008,1780189846000,-710.0,0.0002,2]
[423524010,1780189846000,-199.0,0.0002,2]
[423523921,1780189846000,-250.0,0.00019178,2]
[423523976,1780189846000,-151.0,0.00019538,2]
[423523978,1780189846000,-151.0,0.00019538,2]
[423524011,1780189846000,-7760.89,0.0002,2]
[423523972,1780189846000,-2080.17592889,0.00019538,2]
[423523974,1780189846000,-151.0,0.00019538,2]
[423523923,1780189846000,-151.0,0.00019178,2]
[423523926,1780189846000,-625.489156,0.00019178,2]
[423523927,1780189846000,-625.489156,0.00019178,2]
[423523929,1780189846000,-625.489156,0.00019178,2]
[423523930,1780189846000,-625.489156,0.00019178,2]
[423523932,1780189846000,-625.489156,0.00019178,2]
[423523931,1780189846000,-625.489156,0.00019178,2]
[423523928,1780189846000,-625.489156,0.00019178,2]
[423523933,1780189846000,-625.489156,0.00019178,2]
[423523940,1780189846000,-268.512687,0.00019178,2]
[423523938,1780189846000,-268.512687,0.00019178,2]
[423523934,1780189846000,-268.512687,0.00019178,2]
[423523936,1780189846000,-268.512687,0.00019178,2]
[423523942,1780189846000,-268.512687,0.00019178,2]
[423523925,1780189846000,-200.670542,0.00019178,2]
[423523954,1780189846000,-151.0,0.00019538,2]
[423523970,1780189846000,-151.0,0.00019538,2]
[423523968,1780189846000,-151.0,0.00019538,2]
[423523962,1780189846000,-151.0,0.00019538,2]
[423523966,1780189846000,-151.0,0.00019538,2]
[423523960,1780189846000,-151.0,0.00019538,2]
[423523958,1780189846000,-151.0,0.00019538,2]
[423523964,1780189846000,-151.0,0.00019538,2]
[423523948,1780189846000,-268.512687,0.00019178,2]
[423523950,1780189846000,-25015.33139485,0.00019257,2]
[423523956,1780189846000,-151.0,0.00019538,2]
[423523944,1780189846000,-268.512687,0.00019178,2]
[423523952,1780189846000,-151.0,0.00019538,2]
[423523946,1780189846000,-268.512687,0.00019178,2]
[423524053,1780189847000,-187.78006524,0.0002152,2]
[423524056,1780189847000,-2405.55389863,0.0002173,2]
[423524055,1780189847000,-19231.44409151,0.00021557,2]
[423524054,1780189847000,-1536.04360648,0.0002152,2]
[423524052,1780189847000,-151.0,0.00021479,2]
[423524044,1780189847000,-377.783006,0.00021479,2]
[423524049,1780189847000,-162.476006,0.00021479,2]
[423524050,1780189847000,-162.476006,0.00021479,2]
[423524048,1780189847000,-162.476006,0.00021479,2]
[423524047,1780189847000,-377.783006,0.00021479,2]
[423524045,1780189847000,-377.783006,0.00021479,2]
[423524051,1780189847000,-162.476006,0.00021479,2]
[423524058,1780189847000,-411.4,0.000218,2]
[423524067,1780189847000,-622.0,0.00022,2]
[423524059,1780189847000,-5000.0,0.00021918,2]
[423524061,1780189847000,-200.0,0.00021918,2]
[423524060,1780189847000,-176.23,0.00021918,2]
[423524063,1780189847000,-450.0,0.00022,2]
[423524066,1780189847000,-155.0,0.00022,2]
[423524074,1780189847000,-300.0,0.00022,2]
[423524064,1780189847000,-454.0,0.00022,2]
[423524065,1780189847000,-207.0,0.00022,2]
[423524068,1780189847000,-196.0,0.00022,2]
[423524071,1780189847000,-341.0,0.00022,2]
[423524070,1780189847000,-710.0,0.00022,2]
[423524069,1780189847000,-168.0,0.00022,2]
[423524072,1780189847000,-903.32,0.00022,2]
[423524042,1780189847000,-629.97,0.00021205,2]
[423524057,1780189847000,-7760.89,0.00021753,2]
[423524046,1780189847000,-377.783006,0.00021479,2]
[423524026,1780189847000,-181.08010149,0.00020972,2]
[423524041,1780189847000,-2319.72410669,0.00021182,2]
[423524073,1780189847000,-199.0,0.00022,2]
[423524012,1780189847000,-300.0,0.0002,2]
[423524014,1780189847000,-616.48756792,0.0002,2]
[423524013,1780189847000,-500.0,0.0002,2]
[423524018,1780189847000,-2157.14243826,0.00020086,2]
[423524020,1780189847000,-174.61919141,0.00020424,2]
[423524016,1780189847000,-152.0,0.0002,2]
[423524017,1780189847000,-151.0,0.0002,2]
[423524015,1780189847000,-153.0,0.0002,2]
[423524019,1780189847000,-1296.7,0.00020381,2]
[423524021,1780189847000,-1428.38747117,0.00020424,2]
[423524023,1780189847000,-578.20924308,0.00020424,2]
[423524022,1780189847000,-204.73485834,0.00020424,2]
[423524025,1780189847000,-500.0,0.00020795,2]
[423524024,1780189847000,-2236.95670847,0.00020634,2]
[423524027,1780189847000,-1481.2378076,0.00020972,2]
[423524028,1780189847000,-454.0,0.00021,2]
[423524032,1780189847000,-196.0,0.00021,2]
[423524029,1780189847000,-207.0,0.00021,2]
[423524031,1780189847000,-622.0,0.00021,2]
[423524035,1780189847000,-341.0,0.00021,2]
[423524034,1780189847000,-710.0,0.00021,2]
[423524033,1780189847000,-168.0,0.00021,2]
[423524030,1780189847000,-155.0,0.00021,2]
[423524036,1780189847000,-199.0,0.00021,2]
[423524037,1780189847000,-300.0,0.00021,2]
[423524038,1780189847000,-153.0,0.00021,2]
[423524040,1780189847000,-25015.33139485,0.00021093,2]
[423524039,1780189847000,-500.0,0.00021068,2]
[423524043,1780189847000,-424.76472339,0.00021392,2]
[423524075,1780189847000,-153.0,0.00022,2]
[423524062,1780189847000,-728.50610947,0.00021936,2]
[423524078,1780189847000,-2494.55939288,0.00022278,2]
[423524108,1780189847000,-151.0,0.00022827,2]
[423524111,1780189847000,-185.587909,0.00022827,2]
[423524114,1780189847000,-151.0,0.00022827,2]
[423524113,1780189847000,-151.0,0.00022827,2]
[423524115,1780189847000,-150.0,0.00022865,4]
[423524118,1780189847000,-1545.0,0.00022886,2]
[423524117,1780189847000,-1545.0,0.00022886,2]
[423524119,1780189847000,-150.0,0.00022904,4]
[423524116,1780189847000,-150.0,0.00022872,4]
[423524120,1780189847000,-150.0,0.00022912,4]
[423524122,1780189847000,-150.0,0.00022942,4]
[423524126,1780189847000,-2728.040606,0.00022999,2]
[423524123,1780189847000,-150.0,0.00022959,4]
[423524124,1780189847000,-150.0,0.00022968,4]
[423524121,1780189847000,-25015.33139485,0.00022928,2]
[423524127,1780189847000,-763.30317,0.00022999,2]
[423524131,1780189847000,-2728.040606,0.00022999,2]
[423524130,1780189847000,-763.30317,0.00022999,2]
[423524128,1780189847000,-2728.040606,0.00022999,2]
[423524129,1780189847000,-763.30317,0.00022999,2]
[423524132,1780189847000,-763.30317,0.00022999,2]
[423524133,1780189847000,-2013.6097393,0.00023,2]
[423524138,1780189847000,-196.0,0.00023,2]
[423524134,1780189847000,-454.0,0.00023,2]
[423524135,1780189847000,-207.0,0.00023,2]
[423524136,1780189847000,-155.0,0.00023,2]
[423524137,1780189847000,-622.0,0.00023,2]
[423524139,1780189847000,-168.0,0.00023,2]
[423524077,1780189847000,-1592.87721992,0.00022068,2]
[423524109,1780189847000,-185.587909,0.00022827,2]
[423524112,1780189847000,-185.587909,0.00022827,2]
[423524125,1780189847000,-2728.040606,0.00022999,2]
[423524107,1780189847000,-2586.85809042,0.00022826,2]
[423524076,1780189847000,-194.72792766,0.00022068,2]
[423524110,1780189847000,-185.587909,0.00022827,2]
[423524079,1780189847000,-200.0,0.0002235,2]
[423524080,1780189847000,-1296.7,0.00022353,2]
[423524081,1780189847000,-283.8,0.00022466,2]
[423524084,1780189847000,-150.0,0.00022488,2]
[423524085,1780189847000,-150.0,0.00022488,2]
[423524083,1780189847000,-150.0,0.00022488,2]
[423524087,1780189847000,-150.0,0.00022488,2]
[423524082,1780189847000,-150.0,0.00022488,4]
[423524088,1780189847000,-150.0,0.00022488,2]
[423524092,1780189847000,-150.0,0.00022488,2]
[423524140,1780189847000,-710.0,0.00023,2]
[423524090,1780189847000,-150.0,0.00022488,2]
[423524089,1780189847000,-150.0,0.00022488,2]
[423524086,1780189847000,-150.0,0.00022488,2]
[423524094,1780189847000,-150.0,0.00022535,4]
[423524106,1780189847000,-150.0,0.00022818,4]
[423524091,1780189847000,-150.0,0.00022488,2]
[423524102,1780189847000,-150.0,0.00022715,4]
[423524103,1780189847000,-150.0,0.00022723,4]
[423524104,1780189847000,-150.0,0.00022771,4]
[423524101,1780189847000,-150.0,0.0002268,4]
[423524097,1780189847000,-201.93286098,0.00022616,2]
[423524105,1780189847000,-150.0,0.00022776,4]
[423524098,1780189847000,-1651.81367706,0.00022616,2]
[423524100,1780189847000,-150.0,0.00022676,4]
[423524095,1780189847000,-150.0,0.00022582,4]
[423524093,1780189847000,-150.0,0.000225,14]
[423524096,1780189847000,-150.0,0.00022584,4]
[423524099,1780189847000,-150.0,0.00022629,4]
[423524190,1780189848000,-1545.0,0.00023493,2]
[423524187,1780189848000,-150.0,0.00023478,4]
[423524184,1780189848000,-268.512687,0.00023471,2]
[423524185,1780189848000,-268.512687,0.00023471,2]
[423524183,1780189848000,-268.512687,0.00023471,2]
[423524178,1780189848000,-796.46927,0.00023471,2]
[423524171,1780189848000,-150.0,0.00023431,4]
[423524182,1780189848000,-625.489156,0.00023471,2]
[423524181,1780189848000,-625.489156,0.00023471,2]
[423524180,1780189848000,-625.489156,0.00023471,2]
[423524177,1780189848000,-796.46927,0.00023471,2]
[423524186,1780189848000,-268.512687,0.00023471,2]
[423524179,1780189848000,-625.489156,0.00023471,2]
[423524188,1780189848000,-1545.0,0.00023493,2]
[423524204,1780189848000,-150.0,0.00023525,4]
[423524191,1780189848000,-1545.0,0.00023493,2]
[423524193,1780189848000,-1545.0,0.00023493,2]
[423524195,1780189848000,-300.0,0.00023493,2]
[423524194,1780189848000,-1575.66327408,0.00023493,2]
[423524192,1780189848000,-1545.0,0.00023493,2]
[423524196,1780189848000,-151.0,0.00023493,2]
[423524197,1780189848000,-151.0,0.00023493,2]
[423524199,1780189848000,-253.40818272,0.00023493,2]
[423524200,1780189848000,-238.228422,0.00023497,2]
[423524201,1780189848000,-5000.0,0.000235,3]
[423524198,1780189848000,-153.72526399,0.00023493,2]
[423524203,1780189848000,-3300.0518,0.00023517,2]
[423524202,1780189848000,-7760.89,0.00023505,2]
[423524176,1780189848000,-796.46927,0.00023471,2]
[423524189,1780189848000,-1545.0,0.00023493,2]
[423524175,1780189848000,-796.46927,0.00023471,2]
[423524143,1780189848000,-300.0,0.00023,2]
[423524172,1780189848000,-150.0,0.00023449,4]
[423524142,1780189848000,-199.0,0.00023,2]
[423524205,1780189848000,-150.0,0.00023545,4]
[423524144,1780189848000,-153.0,0.00023,2]
[423524141,1780189848000,-341.0,0.00023,2]
[423524150,1780189848000,-150.0,0.00023148,4]
[423524148,1780189848000,-150.0,0.00023101,4]
[423524145,1780189848000,-150.0,0.00023006,4]
[423524149,1780189848000,-200.0,0.00023135,2]
[423524147,1780189848000,-150.0,0.00023064,4]
[423524151,1780189848000,-150.0,0.0002316,4]
[423524146,1780189848000,-150.0,0.00023053,4]
[423524152,1780189848000,-599.60298507,0.00023163,2]
[423524154,1780189848000,-1712.93078311,0.00023164,2]
[423524155,1780189848000,-150.0,0.00023169,4]
[423524153,1780189848000,-209.40437684,0.00023164,2]
[423524156,1780189848000,-150.0,0.00023195,4]
[423524159,1780189848000,-150.0,0.00023289,4]
[423524173,1780189848000,-19231.44409151,0.00023471,2]
[423524170,1780189848000,-12589.8507357,0.00023403,2]
[423524165,1780189848000,-150.0,0.00023353,4]
[423524169,1780189848000,-5537.9324831,0.00023403,2]
[423524168,1780189848000,-150.0,0.00023396,4]
[423524167,1780189848000,-150.0,0.00023383,4]
[423524174,1780189848000,-151.0,0.00023471,2]
[423524166,1780189848000,-2682.57183977,0.00023374,2]
[423524163,1780189848000,-150.0,0.00023321,4]
[423524162,1780189848000,-150.0,0.00023321,4]
[423524161,1780189848000,-200.0,0.00023315,2]
[423524158,1780189848000,-150.0,0.00023256,4]
[423524160,1780189848000,-3133.0,0.000233,2]
[423524157,1780189848000,-150.0,0.00023242,4]
[423524164,1780189848000,-150.0,0.00023336,4]
[423524208,1780189848000,-150.0,0.00023619,4]
[423524215,1780189848000,-177.12724706,0.00023712,2]
[423524206,1780189848000,-150.0,0.00023572,4]
[423524245,1780189848000,-341.0,0.00024,2]
[423524241,1780189848000,-622.0,0.00024,2]
[423524247,1780189848000,-300.0,0.00024,2]
[423524251,1780189848000,-150.0,0.00024078,4]
[423524250,1780189848000,-150.0,0.00024043,4]
[423524249,1780189848000,-150.0,0.00024025,4]
[423524248,1780189848000,-161.0,0.00024,2]
[423524252,1780189848000,-150.0,0.00024091,4]
[423524253,1780189848000,-825.84,0.0002411,2]
[423524254,1780189848000,-150.0,0.00024121,4]
[423524256,1780189848000,-150.0,0.00024153,4]
[423524255,1780189848000,-150.0,0.00024138,4]
[423524257,1780189848000,-150.0,0.00024153,4]
[423524259,1780189848000,-3550.0,0.00024212,2]
[423524246,1780189848000,-199.0,0.00024,2]
[423524258,1780189848000,-150.0,0.00024185,4]
[423524261,1780189848000,-928.0,0.00024212,2]
[423524265,1780189848000,-3733.095094,0.00024212,2]
[423524262,1780189848000,-525.0,0.00024212,2]
[423524266,1780189848000,-3733.095094,0.00024212,2]
[423524263,1780189848000,-1412.213,0.00024212,2]
[423524264,1780189848000,-3733.095094,0.00024212,2]
[423524209,1780189848000,-150.0,0.00023623,4]
[423524270,1780189848000,-1178.676767,0.00024212,2]
[423524271,1780189848000,-1178.676767,0.00024212,2]
[423524268,1780189848000,-1178.676767,0.00024212,2]
[423524273,1780189848000,-150.0,0.00024232,4]
[423524269,1780189848000,-1178.676767,0.00024212,2]
[423524272,1780189848000,-150.0,0.00024217,4]
[423524274,1780189848000,-1842.0326633,0.0002426,2]
[423524260,1780189848000,-1356.0,0.00024212,2]
[423524242,1780189848000,-196.0,0.00024,2]
[423524267,1780189848000,-3733.095094,0.00024212,2]
[423524240,1780189848000,-155.0,0.00024,2]
[423524243,1780189848000,-168.0,0.00024,2]
[423524207,1780189848000,-268.64,0.000236,14]
[423524210,1780189848000,-150.0,0.00023641,4]
[423524211,1780189848000,-500.0,0.00023644,2]
[423524216,1780189848000,-1776.30922209,0.00023712,2]
[423524213,1780189848000,-813.0,0.000237,5]
[423524212,1780189848000,-150.0,0.00023666,4]
[423524218,1780189848000,-150.0,0.00023737,4]
[423524217,1780189848000,-150.0,0.00023713,4]
[423524221,1780189848000,-150.0,0.00023737,4]
[423524223,1780189848000,-150.0,0.00023808,4]
[423524219,1780189848000,-150.0,0.00023737,4]
[423524220,1780189848000,-150.0,0.00023737,4]
[423524224,1780189848000,-150.0,0.00023833,4]
[423524222,1780189848000,-150.0,0.00023761,4]
[423524214,1780189848000,-2171.0,0.000237,5]
[423524227,1780189848000,-163.26643931,0.00023863,2]
[423524244,1780189848000,-710.0,0.00024,2]
[423524226,1780189848000,-150.0,0.00023855,4]
[423524239,1780189848000,-207.0,0.00024,2]
[423524238,1780189848000,-454.0,0.00024,2]
[423524236,1780189848000,-150.0,0.00023996,4]
[423524237,1780189848000,-500.0,0.00024,2]
[423524235,1780189848000,-1124.0,0.00023982,2]
[423524234,1780189848000,-1037.93,0.00023972,2]
[423524232,1780189848000,-150.0,0.00023929,4]
[423524231,1780189848000,-2781.82699784,0.00023922,2]
[423524225,1780189848000,-150.0,0.00023851,4]
[423524230,1780189848000,-200.0,0.00023921,2]
[423524228,1780189848000,-23400.0,0.000239,8]
[423524233,1780189848000,-150.0,0.00023949,4]
[423524229,1780189848000,-150.0,0.00023902,4]
[423524311,1780189849000,-903.32,0.0002488,7]
[423524310,1780189849000,-150.0,0.00024845,4]
[423524308,1780189849000,-1910.18787185,0.00024808,2]
[423524307,1780189849000,-150.0,0.00024798,4]
[423524305,1780189849000,-25015.33139485,0.00024764,2]
[423524306,1780189849000,-150.0,0.00024794,4]
[423524304,1780189849000,-150.0,0.00024759,4]
[423524313,1780189849000,-150.0,0.00024892,4]
[423524302,1780189849000,-200.0,0.00024706,2]
[423524276,1780189849000,-3638.0,0.00024302,2]
[423524314,1780189849000,-151.0,0.00024896,7]
[423524319,1780189849000,-803.28,0.00024899,2]
[423524315,1780189849000,-214.81732421,0.00024898,2]
[423524316,1780189849000,-500.0,0.00024898,2]
[423524317,1780189849000,-1201.83,0.00024898,2]
[423524318,1780189849000,-521.03,0.00024898,2]
[423524321,1780189849000,-803.28,0.00024899,2]
[423524322,1780189849000,-803.28,0.00024899,2]
[423524320,1780189849000,-803.28,0.00024899,2]
[423524323,1780189849000,-803.31444399,0.00024899,2]
[423524324,1780189849000,-1027.82,0.00024899,2]
[423524299,1780189849000,-803.7,0.00024658,2]
[423524312,1780189849000,-150.0,0.0002489,4]
[423524303,1780189849000,-150.0,0.00024751,4]
[423524285,1780189849000,-150.0,0.00024421,4]